[Event "Early-Titled-Tuesday-Blitz-September-05-2023"]
[Site "Chess.com"]
[Date "2023.09.05"]
[Round "9"]
[White "Vesper2018"]
[Black "Vuk2000"]
[Result "0-1"]
[WhiteElo "2593"]
[BlackElo "2752"]
[TimeControl "180+1"]
[EndTime "9:42:19 PDT"]
[Termination "Vuk2000 won by resignation"]

1. e4 {[%clk 0:03:00.9]} 1... e6 {[%clk 0:03:00.4]} 2. d4 {[%clk 0:03:00.8]}
2... d5 {[%clk 0:03:01.1]} 3. e5 {[%clk 0:03:01.3]} 3... c5 {[%clk 0:03:01.2]}
4. c3 {[%clk 0:03:01.6]} 4... Qb6 {[%clk 0:03:01.1]} 5. Nf3 {[%clk 0:03:00]}
5... Bd7 {[%clk 0:03:01.1]} 6. Be2 {[%clk 0:02:57.7]} 6... Bb5 {[%clk
0:03:00.2]} 7. dxc5 {[%clk 0:02:55.8]} 7... Bxc5 {[%clk 0:02:58.6]} 8. O-O
{[%clk 0:02:54.5]} 8... Bxe2 {[%clk 0:02:57]} 9. Qxe2 {[%clk 0:02:54.4]} 9... a5
{[%clk 0:02:54.4]} 10. a4 {[%clk 0:02:49.9]} 10... Nc6 {[%clk 0:02:37.4]} 11.
Na3 {[%clk 0:02:47.9]} 11... Nge7 {[%clk 0:02:36.9]} 12. Nb5 {[%clk 0:02:46.5]}
12... O-O {[%clk 0:02:36.6]} 13. Bf4 {[%clk 0:02:35.7]} 13... Na7 {[%clk
0:02:28.4]} 14. Nfd4 {[%clk 0:02:27.2]} 14... Nec6 {[%clk 0:02:19]} 15. Rfd1
{[%clk 0:02:25.3]} 15... Rfc8 {[%clk 0:01:57.9]} 16. h4 {[%clk 0:02:08.3]} 16...
Bxd4 {[%clk 0:01:43.5]} 17. Nxd4 {[%clk 0:02:07]} 17... Nxd4 {[%clk 0:01:42.4]}
18. Rxd4 {[%clk 0:02:05.2]} 18... Nc6 {[%clk 0:01:39.7]} 19. Rd3 {[%clk
0:02:05.3]} 19... Ne7 {[%clk 0:01:37.1]} 20. h5 {[%clk 0:01:57.9]} 20... Rc4
{[%clk 0:01:29.7]} 21. Bg5 {[%clk 0:01:47.9]} 21... Re4 {[%clk 0:01:14.1]} 22.
Qd2 {[%clk 0:01:34.2]} 22... Qc7 {[%clk 0:01:05.7]} 23. h6 {[%clk 0:01:26.1]}
23... Ng6 {[%clk 0:01:01.9]} 24. hxg7 {[%clk 0:01:24.5]} 24... Qxe5 {[%clk
0:01:01]} 25. Be3 {[%clk 0:01:01.1]} 25... Qxg7 {[%clk 0:00:45.7]} 26. f3 {[%clk
0:01:00.8]} 26... Ne5 {[%clk 0:00:40.5]} 27. Bd4 {[%clk 0:00:43.4]} 27... Rxd4
{[%clk 0:00:40.8]} 28. cxd4 {[%clk 0:00:43]} 28... Nxd3 {[%clk 0:00:41.1]} 29.
Qxd3 {[%clk 0:00:43.6]} 29... Rc8 {[%clk 0:00:41.4]} 30. Rd1 {[%clk 0:00:40.2]}
30... Qg5 {[%clk 0:00:38.8]} 31. Qb3 {[%clk 0:00:26]} 31... Kg7 {[%clk
0:00:32.9]} 32. Kf2 {[%clk 0:00:17]} 32... Qg6 {[%clk 0:00:32.5]} 33. Rd2 {[%clk
0:00:16.9]} 33... Qg5 {[%clk 0:00:29.5]} 34. Re2 {[%clk 0:00:16.3]} 34... Qh4+
{[%clk 0:00:27.6]} 35. g3 {[%clk 0:00:13.5]} 35... Qxd4+ {[%clk 0:00:27.1]} 36.
Kg2 {[%clk 0:00:14.2]} 36... Rc1 {[%clk 0:00:23]} 37. Qxb7 {[%clk 0:00:10.7]}
37... Qg1+ {[%clk 0:00:22]} 38. Kh3 {[%clk 0:00:11.1]} 38... Qf1+ {[%clk
0:00:22.1]} 39. Rg2 {[%clk 0:00:11.5]} 39... Rc2 {[%clk 0:00:22.3]} 0-1

[Event "Early-Titled-Tuesday-Blitz-September-05-2023"]
[Site "Chess.com"]
[Date "2023.09.05"]
[Round "9"]
[White "Mops_2004"]
[Black "CSB7"]
[Result "1-0"]
[WhiteElo "2828"]
[BlackElo "2704"]
[TimeControl "180+1"]
[EndTime "9:42:21 PDT"]
[Termination "Mops_2004 won by resignation"]

1. g3 {[%clk 0:03:00.9]} 1... d5 {[%clk 0:02:55.7]} 2. Nf3 {[%clk 0:03:00.6]}
2... Nf6 {[%clk 0:02:55.6]} 3. Bg2 {[%clk 0:03:00.8]} 3... e6 {[%clk 0:02:54.9]}
4. O-O {[%clk 0:03:00.9]} 4... Be7 {[%clk 0:02:55.1]} 5. d3 {[%clk 0:03:01.6]}
5... c5 {[%clk 0:02:53.4]} 6. Bf4 {[%clk 0:03:00.5]} 6... Nc6 {[%clk 0:02:49.6]}
7. e4 {[%clk 0:03:00.7]} 7... b6 {[%clk 0:02:46.1]} 8. c4 {[%clk 0:02:52.3]}
8... O-O {[%clk 0:02:28.8]} 9. exd5 {[%clk 0:02:40.5]} 9... exd5 {[%clk
0:02:28.3]} 10. Nc3 {[%clk 0:02:41.3]} 10... Bb7 {[%clk 0:02:14.3]} 11. Ne5
{[%clk 0:02:12.3]} 11... Nd4 {[%clk 0:02:12.2]} 12. Bg5 {[%clk 0:02:00.4]} 12...
Rb8 {[%clk 0:02:05.3]} 13. Bxf6 {[%clk 0:01:41.1]} 13... Bxf6 {[%clk 0:02:04.8]}
14. Ng4 {[%clk 0:01:41.7]} 14... dxc4 {[%clk 0:02:00]} 15. Bxb7 {[%clk
0:01:35.4]} 15... Rxb7 {[%clk 0:01:58.7]} 16. dxc4 {[%clk 0:01:36.1]} 16... g6
{[%clk 0:01:49.6]} 17. Qd3 {[%clk 0:01:17.8]} 17... Bg7 {[%clk 0:01:24.5]} 18.
Rfd1 {[%clk 0:01:09.6]} 18... Rd7 {[%clk 0:01:14.8]} 19. Kg2 {[%clk 0:00:52.6]}
19... Qa8+ {[%clk 0:01:05.7]} 20. Nd5 {[%clk 0:00:38.7]} 20... b5 {[%clk
0:00:37.1]} 21. b3 {[%clk 0:00:38.4]} 21... bxc4 {[%clk 0:00:36.4]} 22. bxc4
{[%clk 0:00:39.3]} 22... Rxd5 {[%clk 0:00:31.3]} 23. cxd5 {[%clk 0:00:39]} 23...
Qxd5+ {[%clk 0:00:32.2]} 24. f3 {[%clk 0:00:39.6]} 24... c4 {[%clk 0:00:30.1]}
25. Qe4 {[%clk 0:00:38.7]} 25... Qb5 {[%clk 0:00:26.8]} 26. Rab1 {[%clk
0:00:25.3]} 26... Qa6 {[%clk 0:00:21.8]} 27. Rxd4 {[%clk 0:00:23.3]} 27... Qxa2+
{[%clk 0:00:18.1]} 28. Kh3 {[%clk 0:00:23.2]} 28... h5 {[%clk 0:00:16.7]} 29.
Ne5 {[%clk 0:00:17.7]} 29... c3 {[%clk 0:00:13.4]} 30. Re1 {[%clk 0:00:14.2]}
30... Rc8 {[%clk 0:00:11]} 31. Rc4 {[%clk 0:00:12.7]} 31... Re8 {[%clk
0:00:10.2]} 32. f4 {[%clk 0:00:12.9]} 32... Bxe5 {[%clk 0:00:07.6]} 33. fxe5
{[%clk 0:00:12.9]} 33... Rxe5 {[%clk 0:00:04.3]} 34. Rc8+ {[%clk 0:00:11.4]}
34... Kh7 {[%clk 0:00:03.4]} 35. Qxe5 {[%clk 0:00:11.7]} 1-0

[Event "Early-Titled-Tuesday-Blitz-September-05-2023"]
[Site "Chess.com"]
[Date "2023.09.05"]
[Round "9"]
[White "smilingice"]
[Black "NovoselovRoman"]
[Result "0-1"]
[WhiteElo "2421"]
[BlackElo "2575"]
[TimeControl "180+1"]
[EndTime "9:42:21 PDT"]
[Termination "NovoselovRoman won by resignation"]

1. e4 {[%clk 0:03:00.9]} 1... d5 {[%clk 0:02:59.8]} 2. exd5 {[%clk 0:03:00.1]}
2... Qxd5 {[%clk 0:03:00.7]} 3. Nc3 {[%clk 0:02:55.7]} 3... Qd6 {[%clk
0:02:59.5]} 4. d4 {[%clk 0:02:51.9]} 4... Nf6 {[%clk 0:02:57]} 5. Nf3 {[%clk
0:02:51.9]} 5... c6 {[%clk 0:02:57.3]} 6. Bc4 {[%clk 0:02:50.6]} 6... Bg4 {[%clk
0:02:57]} 7. h3 {[%clk 0:02:50.1]} 7... Bxf3 {[%clk 0:02:57]} 8. Qxf3 {[%clk
0:02:47.2]} 8... Qxd4 {[%clk 0:02:57.1]} 9. Bb3 {[%clk 0:02:40.3]} 9... Nbd7
{[%clk 0:02:57.1]} 10. Be3 {[%clk 0:02:38.7]} 10... Qb4 {[%clk 0:02:57.1]} 11.
O-O-O {[%clk 0:02:36.6]} 11... e6 {[%clk 0:02:55.1]} 12. Rhe1 {[%clk 0:02:26.4]}
12... Qa5 {[%clk 0:02:43.9]} 13. Bd2 {[%clk 0:02:14]} 13... Qb6 {[%clk
0:02:20.6]} 14. Bxe6 {[%clk 0:01:33]} 14... fxe6 {[%clk 0:02:17.6]} 15. Rxe6+
{[%clk 0:01:26.5]} 15... Kf7 {[%clk 0:02:15.8]} 16. Be3 {[%clk 0:01:10.3]} 16...
Bc5 {[%clk 0:01:54.5]} 17. Qf5 {[%clk 0:01:02.3]} 17... Bxe3+ {[%clk 0:01:50.3]}
18. Rxe3 {[%clk 0:01:01.1]} 18... Rhd8 {[%clk 0:01:01.7]} 19. Qe6+ {[%clk
0:00:51.2]} 19... Kf8 {[%clk 0:01:02]} 20. Ne4 {[%clk 0:00:37.3]} 20... Re8
{[%clk 0:00:50]} 21. Nxf6 {[%clk 0:00:29.9]} 21... Nxf6 {[%clk 0:00:44.4]} 22.
Qd6+ {[%clk 0:00:27.8]} 22... Kg8 {[%clk 0:00:41.3]} 23. Rg3 {[%clk 0:00:21.9]}
23... Ne4 {[%clk 0:00:20]} 24. Qf4 {[%clk 0:00:14.1]} 24... Nxg3 {[%clk
0:00:18.4]} 25. fxg3 {[%clk 0:00:14.4]} 25... Qe3+ {[%clk 0:00:15.7]} 26. Qxe3
{[%clk 0:00:14.2]} 26... Rxe3 {[%clk 0:00:16.6]} 27. Rd7 {[%clk 0:00:14.6]}
27... Rb8 {[%clk 0:00:17.1]} 28. Kd2 {[%clk 0:00:14.8]} 28... Rxg3 {[%clk
0:00:17.1]} 29. Re7 {[%clk 0:00:14.1]} 29... Rxg2+ {[%clk 0:00:17.1]} 30. Ke3
{[%clk 0:00:14.4]} 30... Rg6 {[%clk 0:00:16.1]} 31. Ke4 {[%clk 0:00:13.5]} 31...
Rf6 {[%clk 0:00:16.4]} 32. Ke5 {[%clk 0:00:13.6]} 32... Rf7 {[%clk 0:00:16.8]}
33. Re6 {[%clk 0:00:13.8]} 33... Rd8 {[%clk 0:00:17]} 34. c4 {[%clk 0:00:13.2]}
34... h6 {[%clk 0:00:17.3]} 35. c5 {[%clk 0:00:13.5]} 35... Rdd7 {[%clk
0:00:17.5]} 36. b4 {[%clk 0:00:14]} 36... Rfe7 {[%clk 0:00:17.6]} 37. b5 {[%clk
0:00:14.6]} 37... cxb5 {[%clk 0:00:16.9]} 38. c6 {[%clk 0:00:14.1]} 38... bxc6
{[%clk 0:00:17]} 0-1

[Event "Early-Titled-Tuesday-Blitz-September-05-2023"]
[Site "Chess.com"]
[Date "2023.09.05"]
[Round "9"]
[White "tteshan"]
[Black "Der_Balak_3Halak"]
[Result "1-0"]
[WhiteElo "2570"]
[BlackElo "2417"]
[TimeControl "180+1"]
[EndTime "9:42:21 PDT"]
[Termination "tteshan won by checkmate"]

1. e4 {[%clk 0:03:00.9]} 1... e6 {[%clk 0:02:55.1]} 2. d4 {[%clk 0:03:00.7]}
2... c5 {[%clk 0:02:54.3]} 3. c3 {[%clk 0:02:56.9]} 3... cxd4 {[%clk 0:02:53.6]}
4. cxd4 {[%clk 0:02:57.8]} 4... d5 {[%clk 0:02:54.2]} 5. exd5 {[%clk 0:02:53.7]}
5... Qxd5 {[%clk 0:02:51.6]} 6. Nc3 {[%clk 0:02:53.6]} 6... Bb4 {[%clk
0:02:51.4]} 7. Nf3 {[%clk 0:02:52.8]} 7... Nf6 {[%clk 0:02:49.1]} 8. Bd3 {[%clk
0:02:51.8]} 8... b5 {[%clk 0:02:31.8]} 9. O-O {[%clk 0:02:40.4]} 9... Bxc3
{[%clk 0:02:31.6]} 10. bxc3 {[%clk 0:02:41]} 10... O-O {[%clk 0:02:31.4]} 11.
Bg5 {[%clk 0:02:13.2]} 11... Ne4 {[%clk 0:02:25.6]} 12. Be7 {[%clk 0:01:48]}
12... Re8 {[%clk 0:02:14.3]} 13. Qc2 {[%clk 0:01:48.1]} 13... Bb7 {[%clk
0:02:07.2]} 14. Rfe1 {[%clk 0:01:45.7]} 14... f5 {[%clk 0:01:50.8]} 15. Bh4
{[%clk 0:01:38.2]} 15... Nd6 {[%clk 0:01:24]} 16. Re5 {[%clk 0:01:34.3]} 16...
Qc6 {[%clk 0:01:23.3]} 17. Rae1 {[%clk 0:01:30.2]} 17... Nc4 {[%clk 0:00:59]}
18. Rc5 {[%clk 0:01:11.9]} 18... Qb6 {[%clk 0:00:43.2]} 19. Rxf5 {[%clk
0:00:59.7]} 19... Na3 {[%clk 0:00:35.4]} 20. Qb3 {[%clk 0:00:56.3]} 20... Nd7
{[%clk 0:00:28.8]} 21. Rf4 {[%clk 0:00:45.8]} 21... Nc4 {[%clk 0:00:27.5]} 22.
Ng5 {[%clk 0:00:33.3]} 22... Nf8 {[%clk 0:00:20.3]} 23. Qc2 {[%clk 0:00:32]}
23... g6 {[%clk 0:00:16.1]} 24. Ne4 {[%clk 0:00:23]} 24... Bxe4 {[%clk
0:00:13.1]} 25. Bxe4 {[%clk 0:00:22.6]} 25... Nd6 {[%clk 0:00:11.9]} 26. Bxa8
{[%clk 0:00:22.1]} 26... Rxa8 {[%clk 0:00:12.8]} 27. Qd3 {[%clk 0:00:21.6]}
27... Nf5 {[%clk 0:00:12.4]} 28. Bf6 {[%clk 0:00:19.7]} 28... Kf7 {[%clk
0:00:11.3]} 29. Be5 {[%clk 0:00:19.8]} 29... Kg8 {[%clk 0:00:10.2]} 30. g4
{[%clk 0:00:19.2]} 30... Ne7 {[%clk 0:00:09.5]} 31. Qh3 {[%clk 0:00:19.4]} 31...
Nd5 {[%clk 0:00:07.9]} 32. Qh6 {[%clk 0:00:19.1]} 32... Qb7 {[%clk 0:00:07.2]}
33. Rf3 {[%clk 0:00:15.1]} 33... Rc8 {[%clk 0:00:05.9]} 34. Bd6 {[%clk
0:00:14.6]} 34... b4 {[%clk 0:00:01.9]} 35. Rxf8+ {[%clk 0:00:14.1]} 35... Rxf8
{[%clk 0:00:02.8]} 36. Qxf8# {[%clk 0:00:14.1]} 1-0

[Event "Early-Titled-Tuesday-Blitz-September-05-2023"]
[Site "Chess.com"]
[Date "2023.09.05"]
[Round "9"]
[White "moro182"]
[Black "artin10862"]
[Result "1-0"]
[WhiteElo "2864"]
[BlackElo "2959"]
[TimeControl "180+1"]
[EndTime "9:42:22 PDT"]
[Termination "moro182 won by checkmate"]

1. d4 {[%clk 0:03:00.9]} 1... Nf6 {[%clk 0:02:59.5]} 2. Bf4 {[%clk 0:03:00.4]}
2... g6 {[%clk 0:02:52]} 3. Nc3 {[%clk 0:02:58.7]} 3... d5 {[%clk 0:02:52]} 4.
Nb5 {[%clk 0:02:57.9]} 4... Na6 {[%clk 0:02:50.8]} 5. e3 {[%clk 0:02:57.9]} 5...
Bg7 {[%clk 0:02:49.6]} 6. h3 {[%clk 0:02:58]} 6... O-O {[%clk 0:02:49.2]} 7. Nf3
{[%clk 0:02:58]} 7... c6 {[%clk 0:02:47.4]} 8. Nc3 {[%clk 0:02:57.6]} 8... Nc7
{[%clk 0:02:43.7]} 9. Be2 {[%clk 0:02:57.5]} 9... b6 {[%clk 0:02:37.9]} 10. O-O
{[%clk 0:02:56.2]} 10... Bb7 {[%clk 0:02:38.2]} 11. a4 {[%clk 0:02:56.3]} 11...
Ne6 {[%clk 0:02:38.2]} 12. Be5 {[%clk 0:02:54.8]} 12... c5 {[%clk 0:02:37.8]}
13. a5 {[%clk 0:02:50.2]} 13... Ne4 {[%clk 0:02:37.2]} 14. Bxg7 {[%clk 0:02:42]}
14... Nxc3 {[%clk 0:02:36.8]} 15. bxc3 {[%clk 0:02:42.1]} 15... Kxg7 {[%clk
0:02:37.5]} 16. Ne5 {[%clk 0:02:20.5]} 16... f6 {[%clk 0:02:34.4]} 17. Nd3
{[%clk 0:01:40.1]} 17... Qc7 {[%clk 0:02:32.7]} 18. Bg4 {[%clk 0:01:30.5]} 18...
Ng5 {[%clk 0:02:30.8]} 19. h4 {[%clk 0:01:04.5]} 19... Nf7 {[%clk 0:02:12.1]}
20. Nf4 {[%clk 0:01:03.5]} 20... Nd8 {[%clk 0:02:12.5]} 21. axb6 {[%clk
0:00:59.7]} 21... axb6 {[%clk 0:02:12.1]} 22. Rxa8 {[%clk 0:01:00.6]} 22... Bxa8
{[%clk 0:02:12.8]} 23. h5 {[%clk 0:00:48.2]} 23... e5 {[%clk 0:02:05.8]} 24.
dxe5 {[%clk 0:00:46.4]} 24... Qxe5 {[%clk 0:01:59.2]} 25. c4 {[%clk 0:00:46.5]}
25... d4 {[%clk 0:01:44.4]} 26. Re1 {[%clk 0:00:45.2]} 26... Re8 {[%clk
0:01:36.7]} 27. Bf3 {[%clk 0:00:33.4]} 27... Nf7 {[%clk 0:01:11.5]} 28. hxg6
{[%clk 0:00:28.7]} 28... hxg6 {[%clk 0:01:02.2]} 29. Bxa8 {[%clk 0:00:28.3]}
29... Rxa8 {[%clk 0:01:03.1]} 30. Qg4 {[%clk 0:00:25.3]} 30... g5 {[%clk
0:00:56]} 31. Nd3 {[%clk 0:00:23.3]} 31... Qd6 {[%clk 0:00:49.4]} 32. exd4
{[%clk 0:00:23.2]} 32... cxd4 {[%clk 0:00:49.9]} 33. g3 {[%clk 0:00:20.7]} 33...
Rh8 {[%clk 0:00:42.4]} 34. Re6 {[%clk 0:00:20.2]} 34... Qd7 {[%clk 0:00:39.4]}
35. Qf5 {[%clk 0:00:20.4]} 35... Qd8 {[%clk 0:00:33.5]} 36. c5 {[%clk
0:00:20.4]} 36... bxc5 {[%clk 0:00:14.4]} 37. Nxc5 {[%clk 0:00:16.2]} 37... Qa8
{[%clk 0:00:14.4]} 38. Qxf6+ {[%clk 0:00:16.1]} 38... Kg8 {[%clk 0:00:11.8]} 39.
Qg6+ {[%clk 0:00:16.4]} 39... Kf8 {[%clk 0:00:12.3]} 40. Nd7# {[%clk 0:00:17.3]}
1-0

[Event "Early-Titled-Tuesday-Blitz-September-05-2023"]
[Site "Chess.com"]
[Date "2023.09.05"]
[Round "9"]
[White "alpltl"]
[Black "CixPer1968"]
[Result "1-0"]
[WhiteElo "2352"]
[BlackElo "2179"]
[TimeControl "180+1"]
[EndTime "9:42:22 PDT"]
[Termination "alpltl won on time"]

1. e3 {[%clk 0:02:52]} 1... d5 {[%clk 0:02:59.1]} 2. Nf3 {[%clk 0:02:51.2]} 2...
Nf6 {[%clk 0:02:58]} 3. d4 {[%clk 0:02:49.5]} 3... c6 {[%clk 0:02:56.2]} 4. c4
{[%clk 0:02:48.5]} 4... Bg4 {[%clk 0:02:54.1]} 5. Qb3 {[%clk 0:02:46.9]} 5...
Qb6 {[%clk 0:02:52.5]} 6. Ne5 {[%clk 0:02:46.5]} 6... Bf5 {[%clk 0:02:50.7]} 7.
Bd3 {[%clk 0:02:46.5]} 7... Bxd3 {[%clk 0:02:50.2]} 8. Nxd3 {[%clk 0:02:46.4]}
8... Nbd7 {[%clk 0:02:49.4]} 9. Nc3 {[%clk 0:02:45.9]} 9... e6 {[%clk 0:02:49]}
10. cxd5 {[%clk 0:02:44.2]} 10... exd5 {[%clk 0:02:48.3]} 11. Qxb6 {[%clk
0:02:43.7]} 11... Nxb6 {[%clk 0:02:45]} 12. f3 {[%clk 0:02:43]} 12... Bd6 {[%clk
0:02:44.7]} 13. Kf2 {[%clk 0:02:43.1]} 13... O-O {[%clk 0:02:44.5]} 14. b3
{[%clk 0:02:40.5]} 14... Rfe8 {[%clk 0:02:44.2]} 15. Bb2 {[%clk 0:02:39.6]}
15... Re7 {[%clk 0:02:43.5]} 16. Rae1 {[%clk 0:02:37.7]} 16... Rae8 {[%clk
0:02:43.9]} 17. Re2 {[%clk 0:02:36.6]} 17... Nbd7 {[%clk 0:02:37.4]} 18. h3
{[%clk 0:02:23.5]} 18... h6 {[%clk 0:02:35.3]} 19. g4 {[%clk 0:02:20.5]} 19...
g6 {[%clk 0:02:30.2]} 20. Rc1 {[%clk 0:02:17.2]} 20... Kh7 {[%clk 0:02:28]} 21.
Na4 {[%clk 0:02:15.9]} 21... Kg8 {[%clk 0:01:58.4]} 22. Nac5 {[%clk 0:02:14]}
22... Nxc5 {[%clk 0:01:57.5]} 23. dxc5 {[%clk 0:02:09.1]} 23... Be5 {[%clk
0:01:43.7]} 24. Nxe5 {[%clk 0:02:04.9]} 24... Rxe5 {[%clk 0:01:44.6]} 25. Bxe5
{[%clk 0:02:02.5]} 25... Rxe5 {[%clk 0:01:45.5]} 26. b4 {[%clk 0:01:59.3]} 26...
g5 {[%clk 0:01:41.8]} 27. Rd1 {[%clk 0:01:58.8]} 27... Kg7 {[%clk 0:01:39.6]}
28. Rd4 {[%clk 0:01:58.9]} 28... Kg6 {[%clk 0:01:38.4]} 29. Kg3 {[%clk
0:01:55.7]} 29... a6 {[%clk 0:01:30.3]} 30. h4 {[%clk 0:01:55.5]} 30... gxh4+
{[%clk 0:01:17.5]} 31. Kxh4 {[%clk 0:01:55.4]} 31... h5 {[%clk 0:01:18.1]} 32.
gxh5+ {[%clk 0:01:49.7]} 32... Rxh5+ {[%clk 0:01:17.4]} 33. Kg3 {[%clk
0:01:49.9]} 33... Rh1 {[%clk 0:01:17.5]} 34. Kf4 {[%clk 0:01:44.6]} 34... Rg1
{[%clk 0:00:58]} 35. Ke5 {[%clk 0:01:42.4]} 35... Ne8 {[%clk 0:00:53]} 36. Rg4+
{[%clk 0:01:36.5]} 36... Rxg4 {[%clk 0:00:48.6]} 37. fxg4 {[%clk 0:01:37.4]}
37... Kg5 {[%clk 0:00:40.8]} 38. e4 {[%clk 0:01:35.2]} 38... Nc7 {[%clk
0:00:30.2]} 39. Rf2 {[%clk 0:01:31.8]} 39... dxe4 {[%clk 0:00:14.5]} 40. Rxf7
{[%clk 0:01:26]} 40... Nd5 {[%clk 0:00:12.9]} 41. a3 {[%clk 0:01:20.2]} 41... e3
{[%clk 0:00:12.3]} 42. Rf1 {[%clk 0:01:20.3]} 42... Kxg4 {[%clk 0:00:11.6]} 43.
Ke4 {[%clk 0:01:19.3]} 43... Kg3 {[%clk 0:00:09.7]} 44. Rf3+ {[%clk 0:01:15.8]}
44... Kg2 {[%clk 0:00:09.3]} 45. Rxe3 {[%clk 0:01:04]} 45... Nxe3 {[%clk
0:00:10.2]} 46. Kxe3 {[%clk 0:01:04.8]} 46... Kf1 {[%clk 0:00:09.5]} 47. a4
{[%clk 0:01:05.1]} 47... Ke1 {[%clk 0:00:09]} 48. Kd3 {[%clk 0:01:04.8]} 48...
Kd1 {[%clk 0:00:09.3]} 49. Kc4 {[%clk 0:01:03]} 49... Kc2 {[%clk 0:00:09.3]} 50.
b5 {[%clk 0:01:03.9]} 50... axb5+ {[%clk 0:00:07.2]} 51. axb5 {[%clk 0:01:04.2]}
51... Kb2 {[%clk 0:00:06.2]} 52. Kb4 {[%clk 0:00:50.9]} 1-0

[Event "Early-Titled-Tuesday-Blitz-September-05-2023"]
[Site "Chess.com"]
[Date "2023.09.05"]
[Round "9"]
[White "Heinza9"]
[Black "FARIZA2018"]
[Result "0-1"]
[WhiteElo "2301"]
[BlackElo "2529"]
[TimeControl "180+1"]
[EndTime "9:42:23 PDT"]
[Termination "FARIZA2018 won on time"]

1. e4 {[%clk 0:03:00.9]} 1... e5 {[%clk 0:03:00.1]} 2. Nf3 {[%clk 0:03:00.2]}
2... Nc6 {[%clk 0:03:00.4]} 3. Nc3 {[%clk 0:03:00.3]} 3... Nf6 {[%clk
0:03:00.3]} 4. d4 {[%clk 0:03:00.5]} 4... exd4 {[%clk 0:03:00.4]} 5. Nd5 {[%clk
0:03:00.7]} 5... Nb4 {[%clk 0:02:51.6]} 6. Bc4 {[%clk 0:03:00.5]} 6... Nbxd5
{[%clk 0:02:47]} 7. exd5 {[%clk 0:03:00.2]} 7... Bb4+ {[%clk 0:02:47.3]} 8. Bd2
{[%clk 0:02:59.7]} 8... Bxd2+ {[%clk 0:02:46.1]} 9. Qxd2 {[%clk 0:02:55.2]} 9...
O-O {[%clk 0:02:46.1]} 10. O-O-O {[%clk 0:02:53.6]} 10... d6 {[%clk 0:02:46]}
11. Nxd4 {[%clk 0:02:46.1]} 11... Bd7 {[%clk 0:02:39.5]} 12. Rhe1 {[%clk
0:02:36.9]} 12... a6 {[%clk 0:02:26.9]} 13. a3 {[%clk 0:02:35.8]} 13... b5
{[%clk 0:02:26.9]} 14. Ba2 {[%clk 0:02:35]} 14... Qb8 {[%clk 0:02:25.7]} 15. Nc6
{[%clk 0:02:28.7]} 15... Bxc6 {[%clk 0:02:25.5]} 16. dxc6 {[%clk 0:02:29]} 16...
Qb6 {[%clk 0:02:21.5]} 17. Bd5 {[%clk 0:02:11.6]} 17... Rae8 {[%clk 0:02:17.8]}
18. f3 {[%clk 0:02:10]} 18... Rxe1 {[%clk 0:02:11.1]} 19. Rxe1 {[%clk
0:02:09.2]} 19... Qc5 {[%clk 0:02:11.3]} 20. Bb3 {[%clk 0:01:56.6]} 20... Qxc6
{[%clk 0:02:08]} 21. Re7 {[%clk 0:01:55.9]} 21... Qc5 {[%clk 0:02:05.3]} 22. c3
{[%clk 0:01:42.8]} 22... d5 {[%clk 0:02:03.8]} 23. Qe2 {[%clk 0:01:38.3]} 23...
Qg1+ {[%clk 0:02:01.9]} 24. Kc2 {[%clk 0:01:37.4]} 24... Qxh2 {[%clk 0:02:01.8]}
25. a4 {[%clk 0:01:28.4]} 25... c5 {[%clk 0:01:43.2]} 26. axb5 {[%clk
0:01:22.6]} 26... axb5 {[%clk 0:01:43.3]} 27. Qxb5 {[%clk 0:00:48.6]} 27... c4
{[%clk 0:01:41.7]} 28. Ba4 {[%clk 0:00:43.4]} 28... Qxg2+ {[%clk 0:01:41.5]} 29.
Kb1 {[%clk 0:00:43.6]} 29... Qxf3 {[%clk 0:01:39.2]} 30. Bc2 {[%clk 0:00:34.8]}
30... Qf1+ {[%clk 0:01:36.1]} 31. Ka2 {[%clk 0:00:30.8]} 31... Ra8+ {[%clk
0:01:36.4]} 32. Ba4 {[%clk 0:00:30.8]} 32... h6 {[%clk 0:01:23.2]} 33. Ra7
{[%clk 0:00:08.4]} 33... Rxa7 {[%clk 0:01:18.9]} 34. Qb8+ {[%clk 0:00:08.4]}
34... Kh7 {[%clk 0:01:18.7]} 35. Qxa7 {[%clk 0:00:08.7]} 35... Ne4 {[%clk
0:01:12.6]} 36. Bc2 {[%clk 0:00:07.5]} 36... Qe2 {[%clk 0:00:58.9]} 37. Bxe4+
{[%clk 0:00:06.2]} 37... Qxe4 {[%clk 0:00:58.9]} 38. Qxf7 {[%clk 0:00:06.2]}
38... Qd3 {[%clk 0:00:55]} 39. Ka3 {[%clk 0:00:04.1]} 39... Qe4 {[%clk
0:00:45.6]} 40. Kb4 {[%clk 0:00:03.3]} 40... Qe5 {[%clk 0:00:43.4]} 41. Qf3
{[%clk 0:00:02]} 41... Qd6+ {[%clk 0:00:41.5]} 0-1